bitfinex-derivatives/quotes_ETHF0:USTF0_20250214
["timestamp","ask_amount","ask_price","bid_price","bid_amount"]
[1739508412630,0.5894,2705.6,2705.4,1.31029385]
[1739508413737,0.5894,2705.6,2705.4,0.57114385]
[1739508413941,0.5894,2705.6,2705.5,0.73913]
[1739508414330,0.5894,2705.6,2705.4,1.31028385]
[1739508414525,0.5894,2705.6,2705.4,0.57114385]
[1739508414735,0.5894,2705.6,2705.5,0.73913]
[1739508421342,4.3874,2705.8,2705.6,0.73909]
[1739508422341,0.5823,2705.7,2705.6,0.73909]
[1739508423738,4.3874,2705.8,2705.6,2.90695831]
[1739508423937,3.2078,2705.8,2705.7,0.73908]
[1739508424242,3.2078,2705.8,2705.7,1.91558]
[1739508424440,0.55564385,2706.0,2705.7,1.1765]
[1739508424648,0.00554385,2706.0,2705.9,3.64597831]
[1739508424843,0.00554385,2706.0,2705.9,3.94194584]
[1739508425045,0.00554385,2706.0,2705.9,3.64597831]
[1739508431045,0.00554385,2706.0,2705.9,6.85377831]
[1739508431853,3.2078,2706.5,2705.9,6.11475831]
[1739508432047,3.2078,2706.5,2706.3,3.64585831]
[1739508432239,0.5891,2706.4,2706.3,3.64585831]
[1739508432540,3.2078,2706.5,2706.4,0.73888]
[1739508432739,3.2078,2706.5,2706.4,1.92098]
[1739508433041,3.2078,2706.5,2706.4,2.50388]
[1739508434149,3.2078,2706.5,2706.4,1.765]
[1739508434644,3.2078,2706.5,2706.3,3.64585831]
[1739508434645,3.2078,2706.5,2706.3,2.90695831]
[1739508435048,3.94667,2706.5,2706.3,2.90695831]
[1739508436144,3.2078,2706.5,2706.3,2.90695831]
[1739508438548,3.2078,2706.5,2706.3,3.64586831]
[1739508442447,3.2078,2706.5,2705.9,4.8158]
[1739508442448,3.2078,2706.5,2705.9,2.90695831]
[1739508442653,3.2078,2706.5,2705.7,0.5775]
[1739508442953,0.73895,2706.2,2705.8,0.73904]
[1739508443152,1.1276,2706.1,2705.8,0.73904]
[1739508443354,1.6984,2706.1,2705.8,0.73904]
[1739508443650,1.6984,2706.1,2705.6,6.11475831]
[1739508443651,1.6984,2706.1,2705.9,0.739]
[1739508443848,1.6984,2706.1,2705.6,6.11475831]
[1739508444442,2.43738,2706.1,2705.7,0.73907]
[1739508444642,1.6984,2706.1,2705.6,6.85384831]
[1739508444850,0.739,2706.0,2705.6,6.85385831]
[1739508445550,2.43739,2706.1,2705.6,6.85385831]
[1739508446056,0.73901,2706.0,2705.6,6.85385831]
[1739508446553,1.6984,2706.1,2705.6,6.11475831]
[1739508446756,0.73903,2705.9,2705.6,3.2078]
[1739508447655,0.73901,2706.0,2705.6,3.2078]
[1739508448453,0.73917,2705.4,2704.4,2.90695831]
[1739508448654,3.2078,2705.0,2704.7,2.90695831]
[1739508448858,3.2078,2705.0,2704.9,0.73929]
[1739508454157,0.5388,2705.3,2704.7,6.12030216]
[1739508454367,3.2078,2705.4,2705.3,0.73918]
[1739508454961,3.2078,2705.4,2705.3,43.25898]
[1739508456053,3.2078,2705.4,2705.2,2.90695831]
[1739508456252,1.163,2705.3,2704.9,4.79153831]
[1739508456453,3.2078,2705.1,2704.9,4.05225831]
[1739508458151,3.2078,2705.1,2704.9,4.79154831]
[1739508458360,3.2078,2705.1,2704.9,4.05225831]
[1739508459867,3.2078,2705.1,2704.9,4.79153831]
[1739508461263,3.2078,2705.1,2704.9,4.79154831]
[1739508461670,3.2078,2705.1,2704.9,4.05225831]
[1739508462270,3.2078,2705.1,2705.0,0.73927]
[1739508463062,3.2078,2705.1,2704.9,4.79153831]
[1739508463369,3.94705,2705.1,2704.9,4.05225831]
[1739508463567,3.2078,2705.1,2704.9,4.05225831]
[1739508464265,3.2078,2705.1,2705.0,0.73927]
[1739508464566,3.2078,2705.1,2704.9,4.79153831]
[1739508464964,3.2078,2705.1,2705.0,0.73927]
[1739508465169,1.163,2705.3,2705.2,0.73921]
[1739508465669,3.2078,2705.4,2704.9,4.05225831]
[1739508465967,3.2078,2705.4,2705.1,0.73921]
[1739508466264,0.7392,2705.3,2704.9,4.05225831]
[1739508466570,3.2078,2705.0,2704.9,4.05225831]
[1739508466970,3.2078,2705.0,2704.9,4.79154831]
[1739508467363,0.5551,2705.2,2705.0,0.73926]
[1739508469265,3.2078,2705.3,2705.0,0.73926]
[1739508469462,3.2078,2705.3,2705.1,0.73923]
[1739508470573,3.2078,2705.3,2704.9,4.05225831]
[1739508470769,3.2078,2705.3,2705.2,0.73921]
[1739508471570,3.2078,2705.3,2705.1,0.73922]
[1739508472170,3.2078,2705.3,2704.9,4.05225831]
[1739508472374,3.2078,2705.3,2705.0,0.73927]
[1739508472970,3.2078,2705.3,2705.1,0.73924]
[1739508473373,3.2078,2705.3,2705.0,0.73925]
[1739508473874,3.2078,2705.3,2705.1,0.73924]
[1739508476876,2.44295,2705.5,2705.1,0.73924]
[1739508477171,3.2078,2705.2,2705.1,0.73924]
[1739508479276,3.2078,2705.2,2704.9,4.05225831]
[1739508479675,0.5437,2705.1,2704.9,3.48205831]
[1739508479877,0.5425,2705.0,2704.9,3.48205831]
[1739508481880,0.5425,2705.0,2704.7,0.74488385]
[1739508482079,3.7852,2704.9,2704.7,1.33578385]
[1739508482270,3.7852,2704.9,2704.8,0.73932]
[1739508483777,3.7852,2704.9,2704.0,2.96231263]
[1739508484088,3.39435639,2702.4,2700.2,25.99900198]
[1739508484406,3.2078,2701.7,2701.0,2.90695831]
[1739508484574,3.2078,2701.7,2700.8,40.8]
[1739508484575,3.2078,2701.1,2700.8,40.8]
[1739508484778,3.2078,2701.8,2701.0,2.90695831]
[1739508484977,3.2078,2701.8,2701.1,2.09365177]
[1739508485171,2.90695831,2702.2,2701.7,2.09365177]
[1739508485377,3.2078,2701.8,2701.3,2.90695831]
[1739508485690,3.2078,2701.8,2701.4,0.5806]
[1739508485875,2.90695831,2702.2,2701.7,2.09365177]
[1739508486183,3.2078,2701.8,2701.5,2.09365177]
[1739508486379,2.90695831,2701.6,2701.3,2.09365177]
[1739508486684,2.90695831,2701.6,2700.7,0.00554385]
[1739508486685,0.74033,2701.1,2701.0,2.09365177]
[1739508486987,3.94813,2701.1,2701.0,2.09365177]
[1739508487177,3.2078,2701.1,2700.7,0.00554385]
[1739508487482,4.51449375,2700.8,2700.7,0.00554385]
[1739508487877,4.51449375,2700.8,2700.7,2.09919562]
[1739508488085,3.2078,2700.8,2700.7,2.09919562]
[1739508488887,3.2078,2701.6,2700.9,1.52737802]
[1739508489079,3.2078,2701.6,2701.5,1.52737802]
[1739508489381,3.2078,2701.6,2701.5,40.8]
[1739508489576,3.948,2701.6,2701.5,42.32737802]
[1739508495086,3.2078,2701.6,2700.7,0.00554385]
[1739508495388,0.74033,2701.1,2701.0,0.61454802]
[1739508495575,3.94813,2701.1,2701.0,0.61454802]
[1739508503593,3.2078,2701.1,2701.0,0.61454802]
[1739508504288,3.94813,2701.1,2701.0,0.61454802]
[1739508504889,3.2078,2701.1,2701.0,0.61454802]
[1739508505289,3.2078,2701.1,2701.0,0.59928048]
[1739508505488,3.94813,2701.1,2701.0,0.59928048]
[1739508505684,3.2078,2701.1,2701.0,0.59928048]
[1739508506090,3.94813,2701.1,2701.0,0.59928048]
[1739508508498,3.2078,2701.1,2701.0,0.59928048]
[1739508512790,3.2078,2701.1,2700.7,0.00554385]
[1739508513002,7.5968853,2700.8,2700.7,0.00554385]
[1739508513493,8.30055535,2700.8,2700.7,0.00554385]
[1739508513691,7.56580465,2700.8,2700.7,0.00554385]
[1739508514302,12.82538465,2700.8,2699.9,1.1214]
[1739508514497,0.7406,2700.2,2700.1,0.59928048]
[1739508514699,0.7406,2700.2,2699.7,3.2078]
[1739508515002,3.94837,2700.3,2699.8,0.74069]
[1739508515203,3.2078,2700.3,2699.7,3.2078]
[1739508515399,0.7406,2700.2,2699.7,3.94851]
[1739508515595,0.7406,2700.2,2699.8,41.54068]
[1739508515900,3.21335463,2700.3,2699.9,0.74065]
[1739508516106,3.21335463,2700.3,2700.0,0.74063]
[1739508516599,3.21335463,2700.3,2699.8,40.8]
[1739508516804,3.21335463,2700.3,2699.9,0.74065]
[1739508517098,3.21335463,2700.3,2699.8,40.8]
[1739508517298,3.21335463,2700.3,2699.9,0.74065]
[1739508517501,3.2078,2700.0,2699.8,40.8]
[1739508518207,3.94845,2700.0,2699.8,40.8]
[1739508518397,3.2078,2700.0,2699.7,0.00555463]
[1739508519004,0.74069,2699.8,2699.7,0.00555463]
[1739508519305,0.74066,2699.9,2699.7,0.00555463]
[1739508520006,3.2078,2700.0,2699.7,0.00555463]
[1739508520204,0.74069,2699.8,2699.7,0.00555463]
[1739508520701,3.2078,2700.0,2699.7,0.00555463]
[1739508521091,3.21335463,2700.3,2699.7,2.91946923]
[1739508521298,3.21335463,2700.3,2700.0,0.74062]
[1739508522300,3.21335463,2700.3,2699.9,0.74065]
[1739508522500,3.21335463,2700.3,2700.0,0.74063]
[1739508523401,3.21335463,2700.3,2700.2,0.74058]
[1739508528508,0.00555463,2700.3,2700.2,0.74058]
[1739508533717,0.00555463,2700.3,2700.2,1.33078]
[1739508539219,3.2078,2700.6,2700.5,0.7405]
[1739508540111,3.2078,2700.6,2700.3,2.9139146]
[1739508540314,3.2078,2700.6,2700.2,0.5902]
[1739508540524,3.2078,2700.6,2700.5,0.7405]
[1739508542321,0.00367933,2700.8,2700.7,0.74044]
[1739508544119,0.00367933,2700.8,2700.6,0.74046]
[1739508544512,0.00367933,2700.8,2700.7,0.74044]
[1739508544912,0.00367933,2700.8,2700.4,40.8]
[1739508545116,0.00367933,2700.8,2700.7,0.74044]
[1739508550030,0.00367933,2700.8,2700.6,3.6543646]
[1739508550429,0.00367933,2700.8,2700.6,2.9139146]
[1739508550630,0.00367933,2700.8,2700.6,3.6543746]
[1739508550832,0.00367933,2700.8,2700.7,0.74044]
[1739508551132,3.21147933,2700.8,2700.4,0.74051]
[1739508551830,3.95189933,2700.8,2700.4,0.74051]
[1739508552030,3.95190933,2700.8,2700.3,2.9139146]
[1739508552227,3.21147933,2700.8,2700.3,2.9139146]
[1739508552435,3.21147933,2700.8,2700.4,0.74053]
[1739508553220,3.21147933,2700.8,2700.3,2.9139146]
[1739508553422,3.2078,2700.5,2700.2,40.8]
[1739508553627,1.29744,2700.4,2700.2,40.8]
[1739508554423,0.5569,2700.4,2700.0,2.9139146]
[1739508554624,1.88405,2700.4,2700.0,2.9139146]
[1739508555031,1.1435,2700.4,2700.0,44.4545346]
[1739508555831,3.94839,2700.2,2699.7,6.12726923]
[1739508556032,3.94839,2700.2,2699.7,6.86798923]
[1739508556229,3.2078,2700.2,2699.8,40.8]
[1739508556429,3.2078,2700.2,2700.0,2.9139146]
[1739508556630,3.2078,2700.2,2700.0,3.6545346]
[1739508556830,3.2078,2700.2,2700.0,3.6545246]
[1739508559442,3.2078,2700.2,2700.0,2.9139146]
[1739508559640,3.2078,2700.2,2700.1,0.74061]
[1739508560332,3.2078,2700.2,2700.0,3.6545346]
[1739508560529,3.2078,2700.2,2700.1,40.8]
[1739508561034,3.2078,2700.2,2700.1,41.54061]
[1739508561339,3.2078,2700.2,2700.0,2.9139146]
[1739508561639,3.2078,2700.2,2699.7,3.21335463]
[1739508561640,3.2078,2700.2,2699.8,0.74068]
[1739508562631,3.2078,2700.2,2699.7,46.92726923]
[1739508562833,3.2078,2700.2,2699.9,0.74066]
[1739508563042,3.2078,2700.2,2699.7,6.12726923]
[1739508563043,0.5804,2700.1,2699.7,2.91946923]
[1739508563230,0.74065,2700.0,2699.7,2.91946923]
[1739508563431,0.74065,2700.0,2699.7,0.00555463]
[1739508563737,0.5898,2699.9,2699.7,0.00555463]
[1739508565140,4.53827,2699.9,2699.7,0.00555463]
[1739508565437,0.74069,2699.8,2699.7,0.00555463]
[1739508565633,1.33009,2699.8,2699.7,0.00555463]
[1739508565941,3.7976,2699.9,2699.7,0.00555463]
[1739508566143,3.7972,2700.2,2699.7,2.91946923]
[1739508566539,3.7972,2700.2,2700.0,2.9139146]
[1739508568239,3.7972,2700.2,2699.8,0.74068]
[1739508568541,3.7972,2700.2,2699.7,2.91946923]
[1739508568843,3.7972,2700.2,2699.8,0.74067]
[1739508569240,3.7972,2700.2,2699.7,2.91946923]
[1739508569539,3.7972,2700.2,2699.9,0.74066]
[1739508569540,3.2078,2700.2,2699.9,0.74066]
[1739508569944,3.2078,2700.2,2699.7,2.91946923]
[1739508570242,3.2078,2700.2,2699.8,0.74067]
[1739508570446,3.2078,2700.2,2699.7,2.91946923]
[1739508570641,3.2078,2700.2,2699.8,0.74067]
[1739508570842,3.2078,2700.2,2699.7,2.91946923]
[1739508571036,3.2078,2700.2,2699.9,0.74066]
[1739508571440,3.2078,2700.2,2699.7,2.91946923]
[1739508571643,3.2078,2700.2,2699.8,0.74067]
[1739508572441,3.2078,2700.2,2699.9,0.74065]
[1739508572638,3.2078,2700.2,2699.8,0.74068]
[1739508574246,3.2078,2700.2,2699.9,0.74065]
[1739508574451,3.2078,2700.2,2699.7,2.91946923]
[1739508574941,3.2078,2700.2,2700.0,0.74063]
[1739508575339,3.2078,2700.2,2699.7,3.48026923]
[1739508575746,3.2078,2700.2,2699.9,0.74065]
[1739508579453,3.2078,2700.2,2699.7,3.48026923]
[1739508579652,3.2078,2700.2,2700.0,0.74063]
[1739508579946,3.2078,2700.2,2699.7,3.48026923]
[1739508580149,3.2078,2700.2,2699.9,0.74065]
[1739508581050,3.2078,2700.2,2699.8,0.74067]
[1739508581355,3.2078,2700.2,2700.0,0.74063]
[1739508581555,3.2078,2700.2,2700.1,1.1886]
[1739508581748,3.2078,2700.2,2700.1,1.92921]
[1739508582252,3.2078,2700.2,2700.1,1.1886]
[1739508582453,3.2078,2700.2,2700.1,1.92921]
[1739508582654,3.2078,2700.2,2700.1,1.1886]
[1739508583657,3.2078,2700.2,2700.1,1.92921]
[1739508584256,3.2078,2700.2,2700.1,1.1886]
[1739508584459,3.2078,2700.2,2700.1,1.92921]
[1739508586860,0.5898,2700.4,2700.3,0.74055]
[1739508587059,0.585,2700.7,2700.1,1.1886]
[1739508587560,1.32545,2700.7,2700.3,0.74055]
[1739508588262,1.32545,2700.7,2700.2,0.74056]
[1739508588755,1.32545,2700.7,2700.1,1.1886]
[1739508588950,3.2078,2700.5,2700.1,1.1886]
[1739508589153,3.2078,2700.5,2700.1,1.92918]
[1739508589353,3.2078,2700.5,2700.1,1.1886]
[1739508589554,3.2078,2700.5,2700.2,0.74058]
[1739508591460,3.94831,2700.5,2700.1,1.9292]
[1739508593461,3.2078,2700.5,2700.1,1.9292]
[1739508594460,3.94831,2700.5,2700.1,1.3364]
[1739508595957,3.2078,2700.5,2700.1,0.5958]
[1739508596153,3.2078,2700.5,2700.2,0.74057]
[1739508596660,3.2078,2700.5,2700.1,0.5958]
[1739508597253,3.94831,2700.5,2700.1,0.5958]
[1739508597453,3.94831,2700.5,2700.1,1.3364]
[1739508598659,3.2078,2700.5,2700.1,0.5958]
[1739508598865,3.2078,2700.5,2700.0,3.6545246]
[1739508598866,0.74054,2700.4,2700.0,3.6545246]
[1739508599165,0.5905,2700.4,2700.1,0.74059]
[1739508599469,0.5746,2700.3,2700.1,0.74059]
[1739508600465,0.5746,2700.3,2700.2,0.74058]
[1739508600964,0.5746,2700.3,2700.0,3.6545446]
[1739508601165,3.2078,2700.1,2700.0,2.9139146]
[1739508601367,3.2078,2700.1,2699.8,1.89989]
[1739508601559,3.2078,2700.1,2699.8,1.1592]
[1739508601865,3.2078,2700.1,2699.8,1.89989]
[1739508602657,3.2078,2700.1,2699.9,0.74064]
[1739508602865,3.2078,2700.1,2700.0,0.74063]
[1739508603762,0.5746,2700.3,2700.2,0.74058]
[1739508604169,0.5746,2700.3,2700.0,2.9139146]
[1739508604371,0.5746,2700.3,2700.0,3.6545346]
[1739508604871,0.5746,2700.3,2700.1,0.7406]
[1739508605559,0.5746,2700.3,2700.0,3.6545346]
[1739508606463,0.5746,2700.3,2700.0,2.9139146]
[1739508606664,0.5746,2700.3,2700.1,0.74059]
[1739508607064,0.5746,2700.3,2700.0,3.6545346]
[1739508607267,0.5746,2700.3,2700.0,0.74062]
[1739508607468,0.5746,2700.3,2699.8,1.1592]
[1739508607668,0.5746,2700.3,2700.0,0.74063]
[1739508608577,0.5746,2700.3,2699.8,1.1592]
[1739508608774,0.5746,2700.3,2700.1,0.74059]
[1739508609274,0.5746,2700.3,2700.2,0.74058]
[1739508610074,0.5746,2700.3,2700.1,1.3040124]
[1739508610674,0.5746,2700.3,2700.2,0.74058]
[1739508611476,3.2078,2700.4,2700.3,0.74055]
[1739508611678,3.2078,2700.4,2700.3,2.0445624]
[1739508612678,0.595,2700.6,2700.4,0.7405]
[1739508613977,0.595,2700.6,2700.1,2.91315735]
[1739508614482,0.595,2700.6,2700.5,0.7405]
[1739508614979,0.595,2700.6,2700.1,2.91315735]
[1739508615176,0.595,2700.6,2700.4,0.74051]
[1739508616377,0.595,2700.6,2700.1,2.91315735]
[1739508616577,0.595,2700.6,2700.4,0.74051]
[1739508616978,0.595,2700.6,2700.1,2.91315735]
[1739508617576,0.595,2700.6,2700.4,0.74051]
[1739508618280,0.595,2700.6,2700.5,0.7405]
[1739508619184,0.595,2700.6,2700.1,2.91315735]
[1739508619388,0.595,2700.6,2700.5,0.7405]
[1739508620178,0.595,2700.6,2700.4,3.65366735]
[1739508620874,0.595,2700.6,2700.4,4.20546735]
[1739508621075,0.595,2700.6,2700.4,1.29231]
[1739508621670,0.595,2700.6,2700.4,0.5518]
[1739508621884,0.595,2700.6,2700.5,0.7405]
[1739508623185,0.595,2700.6,2700.4,1.29231]
[1739508623386,0.595,2700.6,2700.5,0.7405]
[1739508626190,0.595,2700.6,2700.4,0.5518]
[1739508626383,0.595,2700.6,2700.5,0.7405]
[1739508626887,3.2078,2700.7,2700.4,3.46495735]
[1739508627087,3.2078,2700.7,2700.6,0.74047]
[1739508627389,0.00367933,2700.8,2700.7,0.74044]
[1739508628192,0.00367933,2700.8,2700.6,41.54046]
[1739508628585,0.00367933,2700.8,2700.7,0.74044]
[1739508629092,0.00367933,2700.8,2700.6,40.8]
[1739508629391,3.21147933,2700.8,2700.6,41.54046]
[1739508630488,3.21147933,2700.8,2700.7,0.74044]
[1739508633294,3.21147933,2700.8,2700.7,3.65359735]
[1739508635697,3.21147933,2700.8,2700.7,2.04384651]
[1739508646304,3.21147933,2700.8,2700.7,2.34243552]
[1739508646506,3.21147933,2700.8,2700.7,2.04384651]
[1739508647907,3.21147933,2700.8,2700.7,2.58234651]
[1739508650405,0.00367933,2700.8,2700.7,3.88575302]
[1739508650704,0.00367933,2700.8,2700.7,2.58234651]
[1739508657302,0.00367933,2700.8,2700.7,1.30340651]
[1739508657509,0.00367933,2700.8,2700.6,0.74047]
[1739508657708,0.00367933,2700.8,2700.5,2.04388651]
[1739508657911,0.00367933,2700.8,2700.5,1.30340651]
[1739508658111,0.00367933,2700.8,2700.5,2.04388651]
[1739508658906,0.00367933,2700.8,2700.5,1.30340651]
[1739508659308,3.94828,2700.6,2700.1,1.30340651]
[1739508659508,1.1301,2700.5,2700.1,1.30340651]
[1739508659708,0.5783,2700.4,2700.1,1.30340651]
[1739508659907,0.5783,2700.4,2700.1,2.04400651]
[1739508660309,0.5783,2700.4,2700.1,1.30340651]
[1739508660507,3.2078,2700.3,2699.9,1.30340651]
[1739508661018,3.2078,2700.3,2700.0,0.74063]
[1739508662015,3.2078,2700.3,2699.9,1.30340651]
[1739508662215,3.2078,2700.3,2699.9,2.04405651]
[1739508662520,3.2078,2700.3,2700.0,0.74063]
[1739508662823,3.2078,2700.3,2699.9,2.04405651]
[1739508663520,3.2078,2700.3,2700.0,0.74063]
[1739508664831,3.2078,2700.3,2700.1,0.74058]
[1739508665121,7.44620651,2700.3,2699.7,0.00555463]
[1739508665323,4.51120651,2700.0,2699.7,0.00555463]
[1739508665528,1.7276,2699.9,2699.7,0.00555463]
[1739508665723,1.7276,2699.9,2699.7,1.30896114]
[1739508666915,1.7276,2699.9,2699.7,2.04967114]
[1739508667319,1.7276,2699.9,2699.7,1.30896114]
[1739508668529,1.7276,2699.9,2699.7,0.00555463]
[1739508668929,2.46826,2699.9,2699.7,0.00555463]
[1739508670034,1.7276,2699.9,2699.7,0.00555463]
[1739508670233,2.04409651,2699.8,2699.7,0.00555463]
[1739508671634,2.04409651,2699.8,2699.4,0.74078]
[1739508671635,7.30340651,2699.8,2698.7,1.30340651]
[1739508671826,1.30340651,2699.1,2698.7,1.30340651]
[1739508672130,0.5538,2699.0,2698.9,0.74094]
[1739508672331,0.5538,2699.0,2698.8,0.74095]
[1739508672524,0.5538,2699.0,2698.6,44.0078]
[1739508672832,0.5538,2699.0,2698.8,0.74095]
[1739508673330,0.5538,2699.0,2698.7,1.30340651]
[1739508673533,0.5538,2699.0,2698.7,2.04437651]
[1739508673720,0.5538,2699.0,2698.6,44.01335463]
[1739508673924,0.5538,2699.0,2698.9,0.74094]
[1739508674132,0.5538,2699.0,2698.6,44.01335463]
[1739508674333,0.5538,2699.0,2698.8,0.74095]
[1739508674540,0.5538,2699.0,2698.7,0.74097]
[1739508674741,0.5538,2699.0,2698.6,44.01335463]
[1739508674742,1.1493,2699.0,2698.6,44.01335463]
[1739508675833,1.1493,2699.0,2698.6,44.75435463]
[1739508676332,1.1493,2699.0,2698.6,44.01335463]
[1739508676932,1.1493,2699.0,2698.6,3.21335463]
[1739508677133,1.1493,2699.0,2698.7,0.74098]
[1739508677334,1.1493,2699.0,2698.8,0.74096]
[1739508677535,0.5955,2699.0,2698.9,41.54094]
[1739508677733,3.21335463,2699.2,2698.9,40.8]
[1739508677934,3.21335463,2699.2,2699.0,0.5719]
[1739508678232,3.21335463,2699.2,2699.0,1.1641]
[1739508678530,3.21335463,2699.2,2699.0,1.90499]
[1739508678734,3.21335463,2699.2,2698.9,40.8]
[1739508679034,3.21335463,2699.2,2699.0,0.74091]
[1739508679637,3.21335463,2699.2,2698.9,40.8]
[1739508681432,3.21335463,2699.2,2699.1,0.74088]
[1739508683436,0.00555463,2699.2,2699.1,0.74088]
[1739508683629,0.00555463,2699.2,2699.1,42.13738]
[1739508684429,0.00555463,2699.2,2699.1,1.33738]
[1739508691132,3.2078,2699.6,2699.5,0.74077]
[1739508691342,3.2078,2699.6,2699.5,3.65748606]
[1739508691841,3.2078,2699.6,2699.5,44.45748606]
[1739508692027,3.2078,2699.6,2699.5,40.8]
[1739508692537,3.2078,2699.6,2699.3,0.74081]
[1739508692735,0.5731,2699.5,2699.3,0.74081]
[1739508693041,0.5731,2699.5,2699.2,4.23265606]
[1739508693539,0.5731,2699.5,2699.2,0.5751]
[1739508694040,0.5731,2699.5,2699.2,1.31594]
[1739508694634,0.5731,2699.5,2699.2,0.5751]
[1739508697943,0.5731,2699.5,2699.2,1.31594]
[1739508698643,0.5731,2699.5,2699.3,0.74081]
[1739508699342,0.5731,2699.5,2699.3,1.32621]
[1739508699543,0.5731,2699.5,2699.3,0.5854]
[1739508699743,3.2078,2699.6,2699.3,0.5854]
[1739508699941,3.2078,2699.6,2699.3,1.32623]
[1739508700342,3.2078,2699.6,2699.3,0.5854]
[1739508700544,3.2078,2699.6,2699.4,0.00235047]
[1739508708453,3.94856,2699.6,2699.4,0.00235047]
[1739508712753,0.74077,2699.5,2699.4,0.00235047]
[1739508712954,3.94856,2699.6,2699.4,0.00235047]
[1739508713154,3.94855,2699.6,2699.4,0.00235047]
[1739508713656,3.2078,2699.6,2699.4,0.00235047]
[1739508714855,3.94855,2699.6,2699.4,0.00235047]
[1739508715550,3.2078,2699.6,2699.4,0.00235047]
[1739508715754,0.74077,2699.5,2699.4,0.00235047]
[1739508715954,3.94856,2699.6,2699.4,0.00235047]
[1739508716949,3.2078,2699.6,2699.4,0.00235047]
[1739508717154,3.94856,2699.6,2699.4,0.00235047]
[1739508719052,4.8448,2699.6,2699.4,0.00235047]
[1739508719257,5.58555,2699.6,2699.4,0.00235047]
[1739508719650,3.94855,2699.6,2699.4,0.00235047]
[1739508720257,3.2078,2699.6,2699.4,0.00235047]
[1739508721158,3.2078,2699.6,2699.4,0.55385047]
[1739508721747,3.2078,2699.6,2699.5,0.543]
[1739508723957,3.2078,2699.6,2699.4,0.55385047]
[1739508724161,3.2078,2699.6,2699.4,0.00235047]
[1739508727366,1.1283,2699.7,2699.4,1.30724751]
[1739508727563,0.00367933,2699.8,2699.6,1.30489704]
[1739508727758,0.00367933,2699.8,2699.7,0.5744]
[1739508728456,0.00367933,2699.8,2699.7,1.31512]
[1739508728652,0.00367933,2699.8,2699.7,0.5744]
[1739508731663,0.00367933,2699.8,2699.7,1.31512]
[1739508734670,0.00367933,2699.8,2699.7,4.52292]
[1739508735273,0.00367933,2699.8,2699.7,6.14992]
[1739508735869,8.83007229,2700.5,2700.1,0.74061]
[1739508736075,8.83007229,2700.5,2700.2,1.6567]
[1739508736275,8.83007229,2700.5,2700.3,0.74054]
[1739508738702,8.83007229,2700.5,2700.2,1.6567]
[1739508739073,8.83007229,2700.5,2700.3,0.74054]
[1739508740284,8.83007229,2700.5,2700.3,2.9148751]
[1739508740483,8.83007229,2700.5,2700.4,0.74052]
[1739508744486,5.62227229,2700.5,2700.4,0.74052]
[1739508744992,3.7622,2700.8,2700.5,0.74049]
[1739508745690,3.7622,2700.8,2700.6,1.30786]
[1739508748086,1.0982,2700.9,2700.6,3.4822751]
[1739508748290,1.0982,2700.9,2700.8,0.74042]
[1739508748882,1.0982,2700.9,2700.7,0.5508]
[1739508749087,1.0982,2700.9,2700.7,1.29123]
[1739508749896,1.0982,2700.9,2700.7,0.5508]
[1739508750199,1.0982,2700.9,2700.8,0.74042]
[1739508750492,0.5551,2700.9,2700.8,0.74042]
[1739508751695,0.5551,2700.9,2700.8,2.04377052]
[1739508755495,0.5514,2701.2,2700.8,2.60670104]
[1739508755684,1.1392,2701.2,2701.0,1.30335052]
[1739508755889,1.1392,2701.2,2701.1,0.74033]
[1739508756095,1.1392,2701.2,2701.0,2.04370052]
[1739508757794,1.1392,2701.2,2701.1,0.74033]
[1739508757996,0.5878,2701.2,2701.1,0.74033]
[1739508758190,0.5878,2701.2,2701.0,2.04369052]
[1739508758895,0.5878,2701.2,2701.1,0.74033]
[1739508760796,0.5878,2701.2,2701.0,2.04369052]
[1739508764699,0.5878,2701.2,2701.1,0.74033]
[1739508765101,0.5878,2701.2,2701.1,1.28473]
[1739508766602,0.5878,2701.2,2701.1,0.5444]
[1739508770806,0.5878,2701.2,2701.1,1.28473]
[1739508775511,28.71527,2701.1,2701.0,1.30335052]
[1739508776904,28.71527,2701.1,2701.0,2.04371052]
[1739508778706,28.71527,2701.1,2701.0,2.61921052]
[1739508797024,28.71527,2701.1,2701.0,2.04371052]
[1739508797520,28.71527,2701.1,2700.6,1.30335052]
[1739508797725,2.04381052,2700.7,2700.2,5.07325052]
[1739508798021,2.04381052,2700.7,2700.2,5.25172052]
[1739508798022,0.5865,2700.6,2700.2,5.25172052]
[1739508798223,1.0929,2700.5,2700.2,5.25172052]
[1739508798416,1.0929,2700.5,2700.3,40.8]
[1739508798616,1.0929,2700.5,2700.3,41.54053]
[1739508798824,1.0929,2700.5,2700.4,1.30335052]
[1739508799530,1.0929,2700.5,2700.4,2.04388052]
[1739508800519,1.0929,2700.5,2700.4,1.30335052]
[1739508805424,1.0929,2700.5,2700.2,4.51115052]
[1739508805729,1.0929,2700.5,2700.2,5.25172052]
[1739508808638,1.0929,2700.5,2700.2,4.51115052]
[1739508808935,1.0929,2700.5,2700.3,0.74055]
[1739508809827,1.0929,2700.5,2700.2,5.25171052]
[1739508810834,1.0929,2700.5,2700.3,0.74055]
[1739508812232,0.5519,2700.5,2700.4,2.04388052]
[1739508812441,0.5865,2700.6,2700.5,0.7405]
[1739508812628,0.5865,2700.6,2700.4,1.30335052]
[1739508812833,0.5865,2700.6,2700.4,2.04386052]
[1739508813029,0.5865,2700.6,2700.4,1.30335052]
[1739508814646,0.5865,2700.6,2700.2,3.94838]
[1739508814946,0.5865,2700.6,2700.2,5.25173052]
[1739508815550,3.5025,2700.6,2700.2,4.51115052]
[1739508815755,4.51115052,2700.5,2700.1,0.00555463]
[1739508817438,3.2078,2700.2,2699.6,4.51115052]
[1739508817649,2.42875052,2700.1,2699.6,4.51115052]
[1739508818039,3.01961855,2700.1,2699.6,4.51115052]
[1739508818652,3.76578318,2700.1,2699.6,4.51670515]
[1739508819149,3.02517318,2700.1,2699.6,4.51670515]